bitfinex-derivatives/quotes_ETHF0:USTF0_20250624
["timestamp","ask_amount","ask_price","bid_price","bid_amount"]
[1750768573171,0.82845,2412.6,2412.5,6.834]
[1750768573377,2.07123,2412.5,2411.9,48.60468]
[1750768573580,2.07134,2412.4,2412.1,0.82861]
[1750768573778,0.82865,2412.1,2412.0,0.82864]
[1750768573981,0.82866,2412.0,2411.9,55.43867]
[1750768574278,0.7064,2412.0,2411.9,55.43867]
[1750768574778,0.7257,2412.5,2411.9,87.12953962]
[1750768574973,0.7064,2412.3,2412.2,4.03639]
[1750768575178,0.7064,2412.3,2412.2,10.87039]
[1750768576680,0.7257,2412.5,2412.2,10.0418]
[1750768576888,0.7257,2412.5,2412.4,0.82852]
[1750768577381,1.52105,2412.7,2412.6,0.82845]
[1750768578579,0.6926,2412.7,2412.6,0.82845]
[1750768578786,0.6926,2412.7,2412.6,7.66145]
[1750768579477,0.6906,2412.9,2412.8,0.82838]
[1750768579677,1.51896,2412.9,2412.8,0.82838]
[1750768579983,0.6906,2412.9,2412.5,3.2078]
[1750768580182,0.82842,2412.7,2412.6,7.66145]
[1750768580385,0.82842,2412.7,2412.6,6.833]
[1750768580575,0.82842,2412.7,2412.6,7.66045]
[1750768581078,0.8286,2412.3,2412.2,3.2078]
[1750768581271,0.8286,2412.3,2412.2,10.86837]
[1750768581478,0.8286,2412.3,2412.2,4.03637]
[1750768581678,0.8286,2412.3,2412.2,10.86837]
[1750768581881,0.8286,2412.3,2412.2,4.03637]
[1750768582080,1.5908615,2412.5,2412.4,0.82852]
[1750768582782,0.7623515,2412.5,2412.4,0.82852]
[1750768583179,0.0637515,2412.5,2412.4,0.82852]
[1750768584076,0.8922415,2412.5,2412.4,0.82852]
[1750768584478,0.0637515,2412.5,2412.4,0.82852]
[1750768584877,0.0637515,2412.5,2412.4,7.65552]
[1750768586477,0.8922415,2412.5,2412.4,7.65552]
[1750768586998,0.0637515,2412.5,2412.4,7.65552]
[1750768587387,0.8922415,2412.5,2412.4,7.65452]
[1750768587788,0.0637515,2412.5,2412.4,7.65452]
[1750768587985,0.0637515,2412.5,2412.4,0.82852]
[1750768588182,0.0637515,2412.5,2412.4,7.65452]
[1750768590180,0.0637515,2412.5,2412.4,9.01302]
[1750768594698,0.0637515,2412.5,2412.4,34.80502]
[1750768598195,0.8922415,2412.5,2412.4,0.82852]
[1750768598402,1.97724383,2412.5,2412.4,7.65452]
[1750768599197,1.14875383,2412.5,2412.4,7.65452]
[1750768599589,0.0637515,2412.5,2412.4,7.65452]
[1750768600196,1.1493536,2412.5,2412.4,7.65452]
[1750768600693,1.9778436,2412.5,2412.4,7.65452]
[1750768601401,1.97965937,2412.5,2412.4,7.65452]
[1750768602099,1.15116937,2412.5,2412.4,7.65452]
[1750768602700,1.97965937,2412.5,2412.4,7.65452]
[1750768603298,9.35896937,2412.5,2411.9,3.2078]
[1750768603501,2.44854135,2412.1,2411.1,3.31343614]
[1750768603795,0.82888,2411.5,2411.4,0.82884]
[1750768603997,1.91629787,2411.5,2411.4,0.82884]
[1750768604203,2.63449787,2411.5,2411.4,0.82884]
[1750768604390,1.80561787,2411.5,2411.4,0.82884]
[1750768604591,1.80561787,2411.5,2411.4,3.27738135]
[1750768604803,0.82875,2411.8,2411.7,0.82876]
[1750768605004,2.63365529,2411.8,2411.7,0.82876]
[1750768606692,2.63365529,2411.8,2411.4,3.2078]
[1750768606693,2.07194,2411.7,2411.4,3.2078]
[1750768606899,2.07194,2411.7,2410.8,3.2078]
[1750768606900,2.07212,2411.5,2410.8,3.2078]
[1750768607103,0.829,2411.1,2410.9,0.829]
[1750768607401,0.82916,2410.6,2410.0,3.2078]
[1750768607700,3.2078,2410.8,2410.5,0.82916]
[1750768608006,0.82919,2410.5,2410.4,0.82921]
[1750768608404,0.82915,2410.6,2410.5,0.82916]
[1750768608592,0.82915,2410.6,2410.1,6.827]
[1750768608593,1.52633,2410.7,2410.1,10.22095]
[1750768608798,0.6972,2410.7,2410.6,0.82914]
[1750768610008,0.6972,2410.7,2410.5,6.828]
[1750768610009,0.82905,2410.9,2410.5,8.9009]
[1750768610197,0.82905,2410.9,2410.6,1.3507]
[1750768610507,5.2757,2411.1,2410.6,3.42353]
[1750768610819,0.82901,2411.0,2410.9,0.82902]
[1750768611807,0.6679,2411.1,2411.0,0.829]
[1750768612000,0.82891,2411.3,2411.2,0.82893]
[1750768612206,4.03669,2411.4,2411.3,0.8289]
[1750768612407,0.82893,2411.3,2411.2,0.82892]
[1750768613405,0.82895,2411.2,2411.1,0.82894]
[1750768613608,0.82892,2411.3,2411.2,0.82891]
[1750768616607,1.51406,2411.5,2411.4,0.82887]
[1750768617710,0.6852,2411.5,2411.4,0.82887]
[1750768617911,0.82882,2411.6,2411.5,0.82883]
[1750768620414,0.82887,2411.4,2411.3,0.82888]
[1750768620714,0.82887,2411.4,2411.3,7.65288]
[1750768621307,0.82885,2411.5,2411.4,0.82881]
[1750768621507,0.82881,2411.6,2411.5,0.8288]
[1750768622615,0.82883,2411.5,2411.4,0.82884]
[1750768623006,0.82887,2411.4,2411.3,7.65287]
[1750768623710,0.82887,2411.4,2411.3,6.824]
[1750768625113,1.49727,2411.4,2411.3,6.824]
[1750768625320,1.49727,2411.4,2411.3,7.6529]
[1750768628010,1.49727,2411.4,2411.3,6.824]
[1750768628211,1.49727,2411.4,2411.3,7.6529]
[1750768628917,0.82897,2411.1,2411.0,0.82897]
[1750768629118,0.82896,2411.2,2411.1,0.82892]
[1750768629921,0.82893,2411.3,2411.2,0.8289]
[1750768631013,4.03667,2411.4,2411.3,0.8289]
[1750768631919,1.54606,2411.5,2411.4,0.82887]
[1750768632222,2.63282537,2411.5,2411.4,0.82887]
[1750768632415,2.63282537,2411.5,2411.4,7.65287]
[1750768633315,1.80396537,2411.5,2411.4,7.65287]
[1750768633620,1.91559537,2411.5,2411.4,7.65287]
[1750768633820,1.08676537,2411.5,2411.4,10.10402844]
[1750768634021,0.7028,2411.7,2411.6,0.8288]
[1750768634316,2.61982556,2411.7,2411.6,0.8288]
[1750768639523,2.61982556,2411.7,2411.4,9.78897]
[1750768639524,1.79106556,2411.7,2411.4,2.1361]
[1750768639727,0.82896,2411.3,2411.2,0.8289]
[1750768640034,0.82896,2411.3,2411.2,7.6529]
[1750768640035,1.91722556,2411.3,2411.2,7.6529]
[1750768640231,2.63492556,2411.3,2411.2,6.824]
[1750768640718,2.63486556,2411.3,2411.2,0.82893]
[1750768640918,1.80596556,2411.3,2411.2,0.82893]
[1750768641323,2.63486556,2411.3,2411.2,0.82893]
[1750768643431,2.63486556,2411.3,2411.2,7.65293]
[1750768647035,1.80596556,2411.3,2411.2,7.65293]
[1750768647233,2.63486556,2411.3,2411.2,7.65293]
[1750768647736,1.80596556,2411.3,2411.2,7.65293]
[1750768647934,2.63486556,2411.3,2411.2,7.65293]
[1750768648736,1.08826556,2411.3,2411.2,7.65293]
[1750768649335,3.2078,2411.5,2411.4,0.82887]
[1750768649536,4.29720106,2411.5,2411.4,0.82887]
[1750768650239,5.12606106,2411.5,2411.4,0.82887]
[1750768651141,0.82887,2411.4,2411.3,2.19678]
[1750768651343,1.91827106,2411.4,2411.3,0.82888]
[1750768651538,0.8289,2411.3,2411.2,7.65292]
[1750768651732,1.91830106,2411.3,2411.2,7.65292]
[1750768652127,1.91830106,2411.3,2411.2,0.82892]
[1750768653843,0.82893,2411.2,2411.1,7.64994]
[1750768654042,2.59353106,2411.2,2411.1,7.64994]
[1750768654537,2.59353106,2411.2,2410.9,7.73154844]
[1750768654538,0.82897,2411.1,2411.0,0.82898]
[1750768654838,0.82897,2411.1,2411.0,7.64998]
[1750768655751,2.07209,2411.5,2411.0,6.821]
[1750768656046,0.82893,2411.2,2411.1,2.17164]
[1750768656238,0.82893,2411.2,2411.1,0.82894]
[1750768656740,1.91832648,2411.2,2411.1,0.82894]
[1750768659150,1.08939648,2411.2,2411.1,0.82894]
[1750768659344,0.82889,2411.4,2411.1,1.415]
[1750768659545,1.91833718,2411.3,2411.2,0.82893]
[1750768659844,1.08943718,2411.3,2411.2,0.82893]
[1750768660046,1.08943718,2411.3,2411.2,4.03673]
[1750768660250,0.6961,2411.6,2411.5,0.82883]
[1750768660552,0.6961,2411.6,2411.5,10.85763]
[1750768660553,1.089313,2411.6,2411.5,10.85763]
[1750768660944,1.089313,2411.6,2411.5,12.27263]
[1750768661243,0.6593,2411.8,2411.7,0.82876]
[1750768661447,1.7481952,2411.8,2411.7,0.82876]
[1750768662045,1.7481952,2411.8,2411.7,2.24376]
[1750768665747,2.5769252,2411.8,2411.7,2.24376]
[1750768665952,0.82879,2411.7,2411.5,10.0288]
[1750768666252,0.8288,2411.6,2411.5,3.2078]
[1750768666438,2.73115,2411.8,2411.4,6.82]
[1750768666439,0.82888,2411.5,2411.4,6.82]
[1750768666643,1.91696764,2411.5,2411.4,0.82885]
[1750768667350,0.82887,2411.4,2411.3,6.82]
[1750768667555,1.53597,2411.4,2411.3,7.64888]
[1750768668556,1.53597,2411.4,2411.3,0.82888]
[1750768668851,1.53597,2411.4,2411.3,7.64888]
[1750768669852,1.53597,2411.4,2411.3,0.82888]
[1750768670153,1.53597,2411.4,2411.3,7.64888]
[1750768670753,2.62380739,2411.4,2411.3,7.64888]
[1750768671048,2.85827,2411.4,2411.3,7.64888]
[1750768671360,1.53597,2411.4,2411.3,0.82888]
[1750768672444,2.62425441,2411.4,2411.3,0.82888]
[1750768672739,0.8289,2411.3,2411.2,7.64891]
[1750768675455,0.82893,2411.2,2411.1,10.84774]
[1750768675954,1.91720952,2411.2,2411.1,10.84774]
[1750768678053,1.08827952,2411.2,2411.1,13.29889844]
[1750768678247,0.8289,2411.3,2411.2,0.8289]
[1750768678447,1.91728615,2411.3,2411.2,0.8289]
[1750768679155,1.08838615,2411.3,2411.2,0.8289]
[1750768679455,1.91728615,2411.3,2411.2,0.8289]
[1750768681154,0.82893,2411.2,2411.1,10.84874]
[1750768681758,0.82893,2411.2,2411.1,4.03674]
[1750768681945,0.82893,2411.2,2410.8,2.07267]
[1750768681946,0.82904,2411.0,2410.8,3.2078]
[1750768682257,0.829,2411.1,2411.0,0.82894]
[1750768684159,1.91777115,2411.1,2411.0,0.82894]
[1750768687863,1.91777115,2411.1,2410.9,6.812]
[1750768688062,0.82921,2410.5,2410.4,0.82918]
[1750768688558,5.28042,2410.9,2410.4,2.45115844]
[1750768688862,0.82918,2410.6,2410.5,0.82915]
[1750768689464,0.82908,2410.9,2410.8,0.82904]
[1750768689664,1.91643922,2410.9,2410.8,0.82904]
[1750768690163,1.91643922,2410.9,2410.8,2.17054]
[1750768692966,0.82907,2410.8,2410.7,7.64108]
[1750768693970,3.45846,2411.0,2410.7,7.64108]
[1750768693971,0.82907,2410.9,2410.8,0.82904]
[1750768694268,1.91659872,2410.9,2410.8,0.82904]
[1750768695266,1.91659872,2410.9,2410.7,0.82908]
[1750768695267,0.82907,2410.8,2410.7,0.82908]
[1750768695461,0.82907,2410.8,2410.7,7.64208]
[1750768696669,3.2078,2411.4,2410.8,2.07269]
[1750768696874,2.62486123,2411.3,2411.2,0.82891]
[1750768697073,0.82893,2411.2,2411.1,10.09310844]
[1750768697263,0.82893,2411.2,2411.1,9.02805]
[1750768697572,1.91674625,2411.2,2411.1,7.64195]
[1750768698071,1.91674625,2411.2,2411.1,9.02805]
[1750768698268,1.91674625,2411.2,2411.1,0.82895]
[1750768698469,1.91674625,2411.2,2410.9,0.82899]
[1750768698470,0.82903,2411.0,2410.9,0.82899]
[1750768698660,0.82907,2410.9,2410.8,0.82905]
[1750768698864,0.82907,2410.9,2410.8,7.64205]
[1750768699384,0.82907,2410.9,2410.8,0.82905]
[1750768699563,0.82911,2410.7,2410.6,3.2078]
[1750768699770,0.82918,2410.5,2410.4,0.82918]
[1750768699968,0.82916,2410.6,2410.5,0.82914]
[1750768700167,0.82918,2410.5,2410.4,4.69784844]
[1750768700563,2.47772937,2411.2,2410.5,2.07295]
[1750768700763,0.82891,2411.3,2411.2,0.82892]
[1750768700968,1.91688459,2411.4,2411.2,0.82891]
[1750768701269,0.8289,2411.3,2411.2,0.82891]
[1750768701469,1.91695951,2411.3,2411.1,10.84974]
[1750768701669,0.8289,2411.3,2411.2,0.82893]
[1750768701973,0.8289,2411.3,2411.1,3.2078]
[1750768701974,0.82893,2411.2,2411.1,3.2078]
[1750768702175,0.82893,2411.2,2411.0,0.829]
[1750768702176,0.82897,2411.1,2411.0,0.829]
[1750768702375,1.50157,2411.1,2411.0,0.829]
[1750768703471,0.829,2411.0,2410.9,7.64201]
[1750768704270,1.5016,2411.1,2411.0,0.829]
[1750768704575,2.59004734,2411.1,2411.0,0.829]
[1750768704877,2.59004734,2411.1,2410.9,6.813]
[1750768704878,0.829,2411.0,2410.9,7.64201]
[1750768705678,0.82907,2410.9,2410.8,7.63005]
[1750768706868,0.82907,2410.9,2410.8,6.801]
[1750768707171,0.82911,2410.7,2410.6,4.0369]
[1750768707372,0.82911,2410.7,2410.6,10.8379]
[1750768707574,0.82911,2410.7,2410.6,3.2078]
[1750768708174,1.08858488,2410.7,2410.4,0.82917]
[1750768708475,0.8293,2410.2,2410.1,0.82928]
[1750768709278,0.82927,2410.3,2410.2,0.82925]
[1750768709875,4.75286,2410.6,2410.0,15.85852844]
[1750768709876,0.82923,2410.4,2410.3,0.8292]
[1750768710174,1.91563745,2410.4,2410.3,0.8292]
[1750768710575,1.08640745,2410.4,2410.3,0.8292]
[1750768710779,0.6602,2410.6,2410.5,0.82918]
[1750768710978,1.08652061,2410.6,2410.5,0.82918]
[1750768711281,1.91566061,2410.6,2410.5,0.82918]
[1750768711576,1.91566061,2410.6,2410.5,2.22748]
[1750768712082,1.91566061,2410.6,2410.5,0.82918]
[1750768712678,0.82918,2410.5,2410.4,7.63018]
[1750768712878,1.91630338,2410.5,2410.4,7.63018]
[1750768713175,1.91630338,2410.5,2410.4,6.801]
[1750768713579,1.91630338,2410.5,2410.4,7.63021]
[1750768718276,1.91630338,2410.5,2410.4,6.801]
[1750768719589,1.91630338,2410.5,2410.4,7.63021]
[1750768719889,0.82931,2410.1,2410.0,10.83911]
[1750768720473,0.82938,2409.9,2409.8,48.59538]
[1750768720672,0.82938,2409.9,2409.8,55.39738]
[1750768721081,0.82938,2409.9,2409.8,48.59538]
[1750768721284,0.82938,2409.9,2409.8,55.39738]
[1750768721581,0.82942,2409.8,2409.7,3.2078]
[1750768722184,0.82942,2409.8,2409.3,10.0098]
[1750768722185,0.82955,2409.4,2409.3,10.0098]
[1750768722390,0.82955,2409.4,2409.3,3.2078]
[1750768722591,0.82966,2409.1,2409.0,1.3395]
[1750768722890,0.82969,2409.0,2408.9,6.802]
[1750768723584,1.91550325,2409.0,2408.9,7.63173]
[1750768723891,1.08581325,2409.0,2408.9,7.63173]
[1750768724081,1.08581325,2409.0,2408.9,12.63173]
[1750768724304,0.82956,2409.4,2409.3,0.82959]
[1750768724477,4.03729,2409.6,2409.5,0.82952]
[1750768724680,1.52146,2409.7,2409.2,2.07404]
[1750768724878,0.82957,2409.4,2409.3,0.82957]
[1750768725092,0.82954,2409.5,2409.4,0.82953]
[1750768725586,0.692,2409.7,2409.3,8.2361]
[1750768725793,0.82955,2409.5,2409.4,0.82954]
[1750768726292,0.82951,2409.6,2409.5,0.82951]
[1750768726695,2.4764531,2410.1,2409.6,2.07372]
[1750768726894,3.3058031,2410.1,2410.0,0.82935]
[1750768727082,0.82935,2410.1,2410.0,0.82935]
[1750768727287,0.8293,2410.2,2410.1,0.8293]
[1750768727688,2.23087,2410.3,2410.2,0.82928]
[1750768727888,0.82931,2410.2,2410.1,0.8293]
[1750768728088,0.82931,2410.2,2409.9,1.4139]
[1750768728089,0.82932,2410.1,2410.0,0.82932]
[1750768728290,1.9150926,2410.1,2410.0,0.82932]
[1750768729893,1.0857726,2410.1,2410.0,0.82932]
[1750768730098,1.0857726,2410.1,2410.0,2.16432]
[1750768731195,1.9150826,2410.1,2410.0,2.16432]
[1750768731391,1.9150826,2410.1,2410.0,1.335]
[1750768731791,0.82931,2410.1,2410.0,1.335]
[1750768732186,0.82931,2410.1,2410.0,2.16435]
[1750768732990,0.82931,2410.2,2410.1,0.82929]
[1750768733292,0.82931,2410.1,2410.0,2.16432]
[1750768733996,0.82931,2410.2,2410.1,0.82929]
[1750768734193,0.82925,2410.3,2410.2,0.82926]
[1750768734491,0.8293,2410.2,2410.1,7.6333]
[1750768735190,0.8293,2410.2,2410.1,6.804]
[1750768735389,0.8293,2410.2,2410.1,7.63331]
[1750768735584,1.91659312,2410.2,2410.1,7.63331]
[1750768735789,0.8293,2410.2,2410.1,7.63331]
[1750768736392,0.82927,2410.3,2410.2,0.82924]
[1750768736591,4.71873,2410.4,2410.3,0.82924]
[1750768736792,4.97745102,2410.4,2410.3,0.82924]
[1750768736983,1.76965102,2410.4,2410.3,4.03704]
[1750768737191,1.08795102,2410.4,2410.3,4.03704]
[1750768738399,0.82918,2410.5,2410.4,0.82921]
[1750768738695,1.91727942,2410.5,2410.4,0.82921]
[1750768738993,1.08809942,2410.5,2410.4,0.82921]
[1750768739797,1.91727942,2410.5,2410.4,0.82921]
[1750768740496,0.82931,2410.1,2410.0,7.6890615]
[1750768740694,1.10005176,2410.1,2409.6,3.2078]
[1750768740900,0.82945,2409.7,2409.6,7.62547]
[1750768741798,0.82943,2409.8,2409.7,0.8294]
[1750768741996,0.82948,2409.7,2409.6,0.82946]
[1750768742299,0.82944,2409.8,2409.7,0.82941]
[1750768742515,1.92880871,2409.8,2409.7,0.82941]
[1750768743287,0.82944,2409.8,2409.7,0.82941]
[1750768743491,2.07346,2409.9,2409.3,3.2078]
[1750768743691,0.82955,2409.5,2409.4,0.82954]
[1750768743992,0.82955,2409.4,2409.3,3.2078]
[1750768744190,1.54745,2409.4,2409.3,3.2078]
[1750768744389,0.7179,2409.4,2409.3,4.03739]
[1750768744900,0.82952,2409.6,2409.5,0.8295]
[1750768746098,1.54736,2409.8,2409.7,0.82945]
[1750768746292,1.81630446,2409.8,2409.7,0.82945]
[1750768746497,0.7179,2409.8,2409.7,0.82945]
[1750768746694,0.7179,2409.8,2409.7,0.8932015]
[1750768747200,1.54732,2409.8,2409.7,0.8932015]
[1750768747399,0.7179,2409.8,2409.7,0.8932015]
[1750768747598,1.54732,2409.8,2409.7,0.8932015]
[1750768748709,1.3896,2410.3,2409.7,0.8932015]
[1750768748902,1.49183,2410.1,2410.0,0.82932]
[1750768749110,0.82935,2410.0,2409.9,4.03715]
[1750768750300,0.82935,2410.0,2409.9,3.2078]
[1750768751005,1.92946267,2410.0,2409.9,3.2078]
[1750768751206,0.82935,2410.0,2409.9,4.03718]
[1750768751403,0.82935,2410.0,2409.7,6.8607515]
[1750768751404,0.82942,2409.8,2409.7,6.8607515]
[1750768751605,1.92943331,2409.8,2409.7,0.0637515]
[1750768757515,1.92943331,2409.8,2409.7,0.8932015]
[1750768757712,0.82942,2409.8,2409.7,0.8932015]
[1750768758114,0.82941,2409.9,2409.8,0.82938]
[1750768758413,0.82941,2409.9,2409.8,5.44858]
[1750768758615,2.73584,2410.1,2410.0,0.82935]
[1750768758616,1.49183,2410.1,2410.0,0.82935]
[1750768758802,2.59156859,2410.1,2410.0,0.82935]
[1750768759006,1.76223859,2410.1,2410.0,0.82935]
[1750768759204,1.52907,2410.3,2410.2,0.82928]
[1750768759413,2.62927092,2410.3,2410.2,0.82928]
[1750768760913,1.92947092,2410.3,2410.2,0.82928]
[1750768761818,0.82927,2410.3,2410.2,0.82928]
[1750768762216,0.82927,2410.3,2410.2,2.26078]
[1750768762606,0.82927,2410.3,2410.2,1.4315]
[1750768763518,0.82928,2410.2,2410.1,4.03709]
[1750768763906,0.82927,2410.3,2410.2,0.82925]
[1750768764818,0.82924,2410.4,2410.3,0.82922]
[1750768765119,1.9291805,2410.4,2410.3,0.82922]
[1750768765518,0.82924,2410.4,2410.3,0.82922]
[1750768767514,0.707,2410.5,2410.4,0.82921]
[1750768767713,0.82904,2411.0,2410.9,0.82899]
[1750768767919,1.92795066,2411.1,2411.0,0.829]
[1750768768220,0.82904,2410.9,2410.8,1.54126]
[1750768768720,3.42178,2411.2,2410.9,0.829]
[1750768768721,0.82903,2411.0,2410.9,0.829]
[1750768768926,0.82904,2410.9,2410.8,8.33225]
[1750768769714,0.82904,2410.9,2410.8,9.67065]
[1750768770016,0.82903,2411.0,2410.9,0.829]
[1750768770617,0.82903,2411.0,2410.9,7.619]
[1750768770831,0.82903,2411.0,2410.9,8.9574]
[1750768771024,0.82903,2411.0,2410.9,8.1284]
[1750768771225,0.82903,2411.0,2410.9,6.79]
[1750768771727,0.82904,2410.9,2410.8,0.7122]
[1750768771930,0.82904,2410.9,2410.8,7.5022]
[1750768772321,0.82904,2410.9,2410.8,6.79]
[1750768772826,0.82904,2410.9,2410.8,7.61907]
[1750768773932,2.07256,2411.0,2410.6,2.88802]
[1750768774129,0.82914,2410.6,2410.5,0.82915]
[1750768774320,0.82918,2410.5,2410.4,4.03701]
[1750768774522,2.07282,2410.7,2410.2,2.092]
[1750768774523,0.82924,2410.4,2410.3,7.61823]
[1750768774829,0.82924,2410.4,2410.3,6.789]
[1750768775029,0.82924,2410.4,2410.1,4.0371]
[1750768775030,0.82928,2410.2,2410.1,4.0371]
[1750768775231,0.82931,2410.1,2410.0,0.82933]
[1750768775422,0.82931,2410.1,2410.0,6.789]
[1750768777030,0.82931,2410.1,2410.0,7.61835]
[1750768777229,1.50476,2410.3,2410.0,6.789]
[1750768777433,0.7201,2410.6,2410.2,3.2078]
[1750768777636,0.82924,2410.4,2410.3,0.82923]
[1750768778826,0.8292,2410.5,2410.4,0.82919]
[1750768779032,0.82921,2410.4,2410.3,2.17463]
[1750768779935,0.82921,2410.4,2410.3,0.82923]
[1750768784927,0.82921,2410.4,2410.3,2.24723]
[1750768786734,0.82921,2410.4,2410.3,0.82923]
[1750768787832,0.82924,2410.3,2410.2,4.03705]
[1750768788935,0.7201,2410.6,2410.2,3.2078]
[1750768789131,1.9259628,2410.5,2410.4,0.82918]
[1750768789833,1.9259628,2410.5,2410.4,7.61918]
[1750768791452,1.9259628,2410.5,2410.4,6.79]
[1750768792232,0.82841,2410.4,2410.3,0.8929615]
[1750768792542,1.92554989,2410.4,2410.3,7.6829615]
[1750768793043,0.82841,2410.4,2410.3,0.0637515]
[1750768793542,0.82924,2410.3,2410.2,10.82705]
[1750768793740,1.51744,2410.3,2410.2,10.82705]
[1750768794042,2.61468183,2410.3,2410.2,9.9978]
[1750768794447,4.06588183,2410.3,2410.2,6.79]
[1750768795832,0.82928,2410.2,2410.1,0.82931]
[1750768796037,0.82928,2410.2,2410.1,7.61931]
[1750768796240,0.6882,2410.3,2410.2,0.82928]
[1750768796939,0.8292,2410.5,2410.4,0.82921]
[1750768797244,1.92628332,2410.5,2410.4,0.82921]
[1750768798237,1.09708332,2410.5,2410.4,0.82921]
[1750768798441,4.03686,2410.9,2410.4,2.07303]
[1750768798644,3.8951,2410.9,2410.8,0.82907]
[1750768798941,4.99236145,2410.9,2410.8,0.82907]
[1750768799142,0.82901,2411.0,2410.9,0.829]
[1750768799444,1.09716591,2411.0,2410.9,4.0368]
[1750768799763,1.92616591,2411.0,2410.9,4.0368]
[1750768800338,1.09716591,2411.0,2410.7,1.3687]
[1750768800641,0.82911,2410.8,2410.7,0.8291]
[1750768800843,1.92627591,2410.8,2410.7,7.6101]
[1750768801044,0.82906,2410.9,2410.8,0.82905]
[1750768801245,0.82907,2410.8,2410.7,7.61008]
[1750768801643,1.92408515,2410.8,2410.7,7.61008]
[1750768801949,2.60138515,2410.8,2410.7,7.61008]
[1750768802445,0.6773,2410.8,2410.7,7.61008]
[1750768802647,0.82906,2410.9,2410.8,0.82907]
[1750768802837,2.60142141,2411.0,2410.9,0.82904]
[1750768803149,2.60142141,2411.0,2410.4,0.82918]
[1750768803150,0.82918,2410.5,2410.4,0.82918]
[1750768803343,0.82921,2410.4,2410.3,4.1007715]
[1750768803739,0.82921,2410.4,2410.3,3.2078]
[1750768804245,0.82921,2410.4,2410.3,4.03704]
[1750768804644,0.82921,2410.4,2410.3,3.2078]
[1750768805448,0.82924,2410.3,2410.2,6.8447515]
[1750768805751,0.82924,2410.3,2410.2,6.781]
[1750768806451,0.82924,2410.3,2410.2,7.61028]
[1750768807651,0.7109,2410.5,2410.4,0.82921]
[1750768807954,0.82913,2410.7,2410.6,0.82912]
[1750768808149,1.92430339,2410.7,2410.6,7.61012]
[1750768808349,1.92430339,2410.7,2410.6,7.61014]
[1750768810342,0.82918,2410.5,2410.4,3.2078]
[1750768810550,0.82928,2410.3,2410.1,10.0525515]
[1750768810749,1.52958,2410.2,2410.1,9.9888]
[1750768811051,2.62519196,2410.2,2410.1,3.2078]
[1750768811355,2.62519196,2410.2,2410.1,9.9888]
[1750768811654,2.62519196,2410.2,2410.1,3.2078]
[1750768811956,1.52958,2410.2,2410.1,3.2078]
[1750768812149,1.52958,2410.2,2410.1,10.81811]
[1750768812347,1.52958,2410.2,2410.1,4.03711]
[1750768812555,1.52958,2410.2,2410.1,3.2078]
[1750768812950,2.62514255,2410.2,2410.1,3.2078]
[1750768813453,2.62514255,2410.2,2410.1,4.03711]
[1750768813649,2.62514255,2410.2,2410.1,3.2078]
[1750768814257,2.62514255,2410.2,2410.1,4.03711]
[1750768815058,0.7003,2410.2,2410.1,4.03711]
[1750768815243,0.7003,2410.2,2410.1,5.46271]
[1750768816255,1.52958,2410.2,2410.1,5.46271]
[1750768816451,1.52958,2410.2,2410.1,0.82931]
[1750768816657,2.62487869,2410.2,2410.1,0.82931]
[1750768817660,1.52958,2410.2,2410.1,0.82931]
[1750768820356,2.07283,2410.7,2410.1,3.2078]
[1750768820556,1.53001,2410.5,2410.4,4.03697]
[1750768820756,0.82924,2410.4,2410.3,0.82922]
[1750768820958,1.92458937,2410.4,2410.3,0.82922]
[1750768821863,0.7008,2410.5,2410.4,0.82921]
[1750768822063,0.7008,2410.5,2410.4,4.03701]
[1750768822276,0.82917,2410.6,2410.5,0.82918]
[1750768822453,1.54327,2410.6,2410.5,0.82918]
[1750768822657,2.6384926,2410.6,2410.5,0.82918]
[1750768825269,0.82918,2410.5,2410.4,3.2078]
[1750768825460,1.9244026,2410.5,2410.4,3.2078]
[1750768826162,0.82921,2410.4,2410.3,0.82923]
[1750768828353,0.82919,2410.5,2410.4,0.82918]
[1750768828553,1.09502386,2410.5,2410.4,0.82918]
[1750768828763,1.92420386,2410.5,2410.4,0.82918]
[1750768829266,0.82921,2410.4,2410.2,3.2078]
[1750768829459,2.00865277,2410.3,2410.2,3.2078]
[1750768830267,0.82935,2410.1,2409.9,4.5512]
[1750768830470,0.82945,2409.7,2409.6,3.2078]
[1750768830656,1.17946493,2409.7,2409.6,0.82948]
[1750768830858,2.00891493,2409.7,2409.6,0.82948]
[1750768831260,1.17946493,2409.7,2409.6,4.03728]
[1750768831463,1.17946493,2409.7,2409.6,9.03728]
[1750768831668,0.23192493,2409.7,2409.6,9.03728]
[1750768831976,0.6827,2410.5,2410.4,0.82921]
[1750768832268,1.51179,2410.8,2410.7,0.82911]
[1750768832468,0.6827,2410.8,2410.7,0.82911]
[1750768833371,3.9045,2411.0,2410.9,0.82904]
[1750768833372,0.6967,2411.0,2410.9,0.82904]
[1750768833568,0.829,2411.1,2411.0,0.82898]
[1750768834471,0.82903,2411.0,2410.9,0.82901]
[1750768836068,0.82899,2411.1,2411.0,0.82898]
[1750768836672,1.51165,2411.2,2411.1,0.82897]
[1750768837076,1.51165,2411.2,2410.8,3.41396]
[1750768837077,0.82899,2411.1,2411.0,0.82898]
[1750768837671,1.51165,2411.2,2411.1,0.82897]
[1750768838073,0.6827,2411.2,2411.1,0.82897]
[1750768839964,3.2078,2411.7,2411.2,2.07234]
[1750768840169,0.82883,2411.6,2411.5,0.8288]
[1750768840771,2.21149,2411.7,2411.6,0.8288]
[1750768841075,0.82886,2411.5,2411.4,0.82884]
[1750768841381,0.82882,2411.6,2411.5,0.8288]
[1750768841871,0.8289,2411.4,2411.3,0.82888]
[1750768842173,0.8289,2411.3,2411.2,4.03671]